[Event "2nd Namma Bengaluru Open-A 2025"]
[Site "Bengaluru"]
[Date "2025.04.15"]
[Round "7.20"]
[White "Viani Antonio Dcunha"]
[Black "Kshatriya Nitin Vekhande"]
[Result "*"]
[Annotator "RC"]
[ECO "B78"]
[WhiteElo "2378"]
[BlackElo "2133"]
[PlyCount "45"]
[EventDate "2025.04.10"]
[EventType "swiss"]
[EventCountry "IND"]
[SourceTitle "playchess.com"]
[Source "ChessBase"]
[SourceQuality "1"]
[TimeControl "5400+30"]

1. e4 {[%emt 0:00:32]} c5 {[%emt 0:00:05]} 2. Nf3 {[%emt 0:00:08]} d6 {[%emt 0:00:18]} 3. d4 {[%emt 1:31:20]} cxd4 {[%emt 0:00:03]} 4. Nxd4 {[%emt 0:00:08]} Nf6 {[%emt 0:00:04]} 5. Nc3 {[%emt 0:00:10]} g6 {[%emt 0:00:06]} 6. Be3 {[%emt 0:00:13]} Bg7 {[%emt 0:00:04]} 7. f3 {[%emt 0:00:38]} O-O {[%emt 0:00:06]} 8. Qd2 {[%emt 0:00:35]} Nc6 9. Bc4 {[%emt 0:00:36]} Bd7 {[%emt 0:00:10]} 10. O-O-O {[%emt 0:00:53]} Rc8 {[%emt 0:00:03]} 11. Bb3 {[%emt 0:00:24]} Ne5 {[%emt 0:00:04]} 12. Kb1 {[%emt 0:01:27]} Nc4 {[%emt 0:00:55]} 13. Bxc4 {[%emt 0:00:08]} Rxc4 {[%emt 0:00:03]} 14. g4 {[%emt 0:00:37]} b5 {[%emt 0:00:10]} 15. g5 {[%emt 0:00:37]} Nh5 {[%emt 0:03:09]} 16. b3 {[%emt 0:00:27]} b4 {[%emt 0:05:58]} 17. Nd5 {[%emt 0:01:01]} Rc8 {[%emt 0:00:43]} 18. Nxb4 {[%emt 0:06:09]} a5 {[%emt 1:27:29]} 19. Nd5 {[%emt 0:02:15]} a4 {[%emt 0:05:19]} 20. Ne2 {[%emt 1:23:19]} Be6 {[%emt 0:03:59]} 21. Bd4 {[%emt 0:08:23]} Bxd5 {[%emt 0:02:01]} 22. exd5 {[%emt 0:00:21]} Qd7 {[%emt 0:03:47]} 23. Ng3 {[%emt 0:05:29]} *

[Event "2nd Namma Bengaluru Open-A 2025"]
[Site "Bengaluru"]
[Date "2025.04.15"]
[Round "7.21"]
[White "Sanikidze, Tornike"]
[Black "Matta, Vinay Kumar"]
[Result "1-0"]
[Annotator "RC"]
[ECO "D52"]
[WhiteElo "2448"]
[BlackElo "2054"]
[PlyCount "99"]
[EventDate "2025.04.10"]
[EventType "swiss"]
[EventCountry "IND"]
[SourceTitle "playchess.com"]
[Source "ChessBase"]
[SourceQuality "1"]
[TimeControl "5400+30"]

1. d4 {[%emt 0:00:34]} d5 {[%emt 0:00:09]} 2. c4 {[%emt 0:00:09]} c6 {[%emt 0:00:04]} 3. Nf3 {[%emt 0:00:09]} Nf6 {[%emt 0:00:05]} 4. Nc3 {[%emt 0:00:09]} e6 {[%emt 0:00:06]} 5. Bg5 {[%emt 0:00:29]} Nbd7 {[%emt 0:00:08]} 6. e3 {[%emt 0:06:42]} Qa5 {[%emt 0:00:17]} 7. Nd2 {[%emt 0:00:24]} Bb4 {[%emt 0:00:33]} 8. Rc1 {[%emt 0:01:00]} Ne4 {[%emt 0:02:39]} 9. Ndxe4 {[%emt 0:02:17]} dxe4 {[%emt 0:00:06]} 10. Bh4 {[%emt 0:00:26]} Qxa2 {[%emt 0:00:24]} 11. Qc2 {[%emt 0:00:08]} Nb6 {[%emt 0:00:44]} 12. Kd1 {[%emt 0:06:20]} Bxc3 {[%emt 0:01:10]} 13. bxc3 {[%emt 0:00:10]} Qa5 {[%emt 0:06:16]} 14. c5 {[%emt 0:01:29]} Nd5 {[%emt 0:01:00]} 15. c4 Nb4 {[%emt 0:01:34]} 16. Qd2 {[%emt 0:04:07]} Qa4+ {[%emt 0:02:22]} 17. Ke1 {[%emt 0:00:02]} a5 {[%emt 0:05:02]} 18. f3 {[%emt 0:00:28]} Qb3 {[%emt 0:06:31]} 19. Kf2 {[%emt 0:00:47]} a4 {[%emt 0:02:47]} 20. Be2 {[%emt 0:00:15]} Nd3+ {[%emt 0:03:53]} 21. Bxd3 {[%emt 0:01:23]} exd3 {[%emt 0:00:32]} 22. Rc3 {[%emt 0:02:53]} Qb4 {[%emt 0:00:26]} 23. Qxd3 {[%emt 0:00:03]} O-O {[%emt 0:03:52]} 24. Bg3 {[%emt 0:10:27]} Qa5 {[%emt 0:14:32]} 25. Ra3 {[%emt 0:01:15]} b5 {[%emt 0:01:44]} 26. cxb6 {[%emt 0:00:46]} Qxb6 {[%emt 0:00:10]} 27. Rb1 {[%emt 0:04:03]} Qd8 {[%emt 0:04:55]} 28. Rb4 {[%emt 0:05:35]} c5 {[%emt 0:00:11]} 29. Rbxa4 {[%emt 0:00:25]} Rxa4 {[%emt 0:00:14]} 30. Rxa4 {[%emt 0:00:01]} Bb7 {[%emt 0:11:06]} 31. Qb3 {[%emt 0:04:39]} cxd4 {[%emt 0:16:31]} 32. Qxb7 {[%emt 0:01:07]} dxe3+ {[%emt 0:00:05]} 33. Kxe3 {[%emt 0:00:08]} Qg5+ {[%emt 0:00:29]} 34. Ke2 {[%emt 0:05:30]} Rd8 {[%emt 0:00:21]} 35. Qb2 {[%emt 0:01:53]} h5 {[%emt 0:02:56]} 36. Kf1 {[%emt 0:01:42]} h4 {[%emt 0:03:32]} 37. Be1 {[%emt 0:00:58]} h3 {[%emt 0:01:16]} 38. gxh3 {[%emt 0:00:19]} Qf5 {[%emt 0:00:21]} 39. Ra3 {[%emt 0:02:44]} Rd1 {[%emt 0:01:28]} 40. Qe2 {[%emt 0:00:19]} Rd4 {[%emt 0:03:04]} 41. h4 {[%emt 0:01:41]} e5 {[%emt 0:00:42]} 42. Re3 {[%emt 0:00:50]} f6 {[%emt 0:01:41]} 43. Re4 {[%emt 0:00:01]} Rd8 {[%emt 0:00:29]} 44. c5 {[%emt 0:00:22]} Rc8 {[%emt 0:01:16]} 45. Qc4+ {[%emt 0:00:05]} Kh8 {[%emt 0:00:07]} 46. Kg2 {[%emt 0:00:07]} Rb8 {[%emt 0:00:32]} 47. c6 {[%emt 0:01:26]} Rb2+ {[%emt 0:00:37]} 48. Re2 {[%emt 0:00:02]} e4 {[%emt 0:00:40]} 49. Rxb2 {[%emt 0:00:36]} Qxf3+ {[%emt 0:00:15]} 50. Kg1 {[%emt 0:00:04]} 1-0

[Event "2nd Namma Bengaluru Open-A 2025"]
[Site "Bengaluru"]
[Date "2025.04.15"]
[Round "7.21"]
[White "Sanikidze, Tornike"]
[Black "Matta, Vinay Kumar"]
[Result "*"]
[Annotator "RC"]
[ECO "D52"]
[WhiteElo "2448"]
[BlackElo "2054"]
[PlyCount "42"]
[EventDate "2025.04.10"]
[EventType "swiss"]
[EventCountry "IND"]
[SourceTitle "playchess.com"]
[Source "ChessBase"]
[SourceQuality "1"]
[TimeControl "5400+30"]

1. d4 {[%emt 0:00:34]} d5 {[%emt 0:00:09]} 2. c4 {[%emt 0:00:09]} c6 {[%emt 0:00:04]} 3. Nf3 {[%emt 0:00:09]} Nf6 {[%emt 0:00:05]} 4. Nc3 {[%emt 0:00:09]} e6 {[%emt 0:00:06]} 5. Bg5 {[%emt 0:00:29]} Nbd7 {[%emt 0:00:08]} 6. e3 {[%emt 0:06:42]} Qa5 {[%emt 0:00:17]} 7. Nd2 {[%emt 0:00:24]} Bb4 {[%emt 0:00:33]} 8. Rc1 {[%emt 0:01:00]} Ne4 {[%emt 0:02:39]} 9. Ndxe4 {[%emt 0:02:17]} dxe4 {[%emt 0:00:06]} 10. Bh4 {[%emt 0:00:26]} Qxa2 {[%emt 0:00:24]} 11. Qc2 {[%emt 0:00:08]} Nb6 {[%emt 0:00:44]} 12. Kd1 {[%emt 0:06:20]} Bxc3 {[%emt 0:01:10]} 13. bxc3 {[%emt 0:00:10]} Qa5 {[%emt 0:06:16]} 14. c5 {[%emt 0:01:29]} Nd5 {[%emt 0:01:00]} 15. c4 {[%emt 1:17:34]} Nb4 {[%emt 0:01:34]} 16. Qd2 {[%emt 0:00:00]} Qa4+ {[%emt 0:02:22]} 17. Ke1 {[%emt 0:00:00]} a5 {[%emt 0:05:02]} 18. f3 {[%emt 0:00:00]} Qb3 {[%emt 0:06:31]} 19. Kf2 {[%emt 0:00:00]} a4 {[%emt 0:02:47]} 20. Be2 {[%emt 0:00:00]} Nd3+ {[%emt 0:03:53]} 21. Bxd3 {[%emt 0:00:00]} exd3 {[%emt 0:00:32]} *

[Event "2nd Namma Bengaluru Open-A 2025"]
[Site "Bengaluru"]
[Date "2025.04.15"]
[Round "7.22"]
[White "Deepan Chakkravarthy J."]
[Black "Arnav Agrawal"]
[Result "*"]
[Annotator "RC"]
[ECO "B22"]
[WhiteElo "2394"]
[BlackElo "2194"]
[PlyCount "67"]
[EventDate "2025.04.10"]
[EventType "swiss"]
[EventCountry "IND"]
[SourceTitle "playchess.com"]
[Source "ChessBase"]
[SourceQuality "1"]
[TimeControl "5400+30"]

1. e4 {[%emt 0:00:26]} c5 {[%emt 0:00:15]} 2. Be2 {[%emt 0:00:05]} d6 {[%emt 0:00:08]} 3. f4 {[%emt 0:00:14]} Nc6 {[%emt 0:00:34]} 4. d3 {[%emt 0:00:05]} g6 {[%emt 0:01:04]} 5. Nf3 {[%emt 0:00:06]} Bg7 {[%emt 0:00:05]} 6. c3 {[%emt 0:00:41]} Nf6 {[%emt 0:01:43]} 7. O-O {[%emt 0:00:05]} O-O {[%emt 0:00:08]} 8. Kh1 {[%emt 0:00:03]} b5 {[%emt 0:00:33]} 9. a3 {[%emt 0:00:03]} a5 {[%emt 0:02:19]} 10. Be3 {[%emt 0:00:05]} Bb7 {[%emt 0:14:45]} 11. Nbd2 {[%emt 0:00:13]} b4 {[%emt 0:00:13]} 12. d4 {[%emt 0:00:11]} cxd4 {[%emt 0:02:41]} 13. cxd4 {[%emt 0:00:28]} d5 {[%emt 0:00:20]} 14. e5 {[%emt 0:01:11]} Ne4 {[%emt 0:00:19]} 15. Bd3 {[%emt 0:06:03]} Ba6 {[%emt 0:09:23]} 16. Nxe4 {[%emt 0:08:53]} dxe4 {[%emt 0:07:30]} 17. Bxe4 {[%emt 0:00:10]} Bxf1 {[%emt 0:05:33]} 18. Bxc6 {[%emt 0:00:07]} Bc4 19. Bxa8 {[%emt 0:01:56]} Qxa8 {[%emt 0:13:47]} 20. axb4 {[%emt 0:00:05]} Rb8 {[%emt 0:06:57]} 21. bxa5 {[%emt 0:00:41]} e6 22. Bd2 {[%emt 0:22:56]} Rxb2 {[%emt 0:13:32]} 23. Qc1 {[%emt 0:02:59]} Ra2 {[%emt 0:00:09]} 24. Rxa2 {[%emt 0:16:00]} Bxa2 {[%emt 0:00:07]} 25. Qc7 {[%emt 0:01:28]} h6 {[%emt 0:10:02]} 26. Kg1 {[%emt 0:01:05]} Bd5 {[%emt 0:01:35]} 27. Kf2 {[%emt 0:00:14]} Bb7 {[%emt 0:06:02]} 28. Bb4 {[%emt 0:00:45]} Bxf3 {[%emt 0:03:51]} 29. gxf3 {[%emt 0:37:42]} Qd5 {[%emt 0:00:05]} 30. Qc3 {[%emt 0:01:23]} Qa2+ {[%emt 0:01:17]} 31. Qd2 {[%emt 0:00:02]} Qa4 {[%emt 0:00:22]} 32. Be7 {[%emt 0:07:34]} h5 {[%emt 0:00:26]} 33. f5 {[%emt 0:02:56]} gxf5 {[%emt 0:00:42]} 34. Kg2 {[%emt 0:04:44]} *

[Event "2nd Namma Bengaluru Open-A 2025"]
[Site "Bengaluru"]
[Date "2025.04.15"]
[Round "7.23"]
[White "Panda Sambit"]
[Black "Koustuv Dash"]
[Result "0-1"]
[Annotator "RC"]
[ECO "A07"]
[WhiteElo "2391"]
[BlackElo "2131"]
[PlyCount "112"]
[EventDate "2025.04.10"]
[EventType "swiss"]
[EventCountry "IND"]
[SourceTitle "playchess.com"]
[Source "ChessBase"]
[SourceQuality "1"]
[TimeControl "5400+30"]

1. Nf3 {[%emt 0:00:42]} Nf6 {[%emt 0:01:04]} 2. g3 {[%emt 0:00:14]} d5 {[%emt 0:00:24]} 3. Bg2 {[%emt 0:00:15]} c6 {[%emt 0:02:27]} 4. O-O {[%emt 0:03:27]} Bg4 {[%emt 0:00:28]} 5. h3 {[%emt 0:00:48]} Bh5 {[%emt 0:00:15]} 6. c4 {[%emt 0:00:54]} e6 {[%emt 0:02:14]} 7. d4 {[%emt 0:02:06]} Be7 {[%emt 0:01:04]} 8. Nc3 {[%emt 0:00:02]} Nbd7 {[%emt 0:01:53]} 9. Ne5 {[%emt 0:18:21]} Bg6 {[%emt 0:16:55]} 10. Nxg6 {[%emt 0:12:23]} hxg6 {[%emt 0:00:01]} 11. Qd3 {[%emt 0:01:43]} O-O {[%emt 0:02:33]} 12. Rd1 {[%emt 0:00:51]} a6 {[%emt 0:06:03]} 13. a4 {[%emt 0:16:14]} a5 {[%emt 0:14:48]} 14. Bf3 {[%emt 0:07:04]} Re8 {[%emt 0:05:03]} 15. Bg5 {[%emt 0:07:52]} Nb8 {[%emt 0:17:04]} 16. e3 {[%emt 0:03:30]} Na6 {[%emt 0:01:28]} 17. Qe2 {[%emt 0:00:48]} Nb4 {[%emt 0:02:55]} 18. Rac1 {[%emt 0:01:51]} Nd7 {[%emt 0:02:38]} 19. Bxe7 {[%emt 0:00:26]} Qxe7 {[%emt 0:00:08]} 20. b3 {[%emt 0:08:14]} Rad8 {[%emt 0:01:09]} 21. Bg2 {[%emt 0:00:04]} Nf6 {[%emt 0:02:45]} 22. f4 {[%emt 0:01:16]} b6 {[%emt 0:08:27]} 23. Kh1 {[%emt 0:04:56]} dxc4 {[%emt 0:04:54]} 24. bxc4 {[%emt 0:01:09]} c5 {[%emt 0:00:10]} 25. Rd2 {[%emt 0:00:09]} cxd4 {[%emt 0:00:47]} 26. exd4 {[%emt 0:00:54]} Rd7 {[%emt 0:00:30]} 27. Nb5 {[%emt 0:00:50]} Rc8 {[%emt 0:00:42]} 28. Re1 {[%emt 0:00:37]} Qd8 {[%emt 0:00:21]} 29. Red1 {[%emt 0:02:36]} Ne8 {[%emt 0:01:38]} 30. d5 {[%emt 0:04:28]} exd5 {[%emt 0:00:18]} 31. Bxd5 {[%emt 0:00:19]} Nxd5 {[%emt 0:01:01]} 32. Rxd5 {[%emt 0:00:19]} Rxd5 {[%emt 0:00:06]} 33. cxd5 {[%emt 0:01:03]} Nd6 {[%emt 0:00:21]} 34. Nd4 {[%emt 0:00:30]} Rc4 {[%emt 0:02:09]} 35. Nc6 {[%emt 0:00:26]} Qd7 {[%emt 0:00:41]} 36. Kh2 {[%emt 0:00:29]} Rxa4 {[%emt 0:00:16]} 37. Qf2 {[%emt 0:00:36]} b5 {[%emt 0:00:56]} 38. Re1 {[%emt 0:00:13]} Ne4 {[%emt 0:02:54]} 39. Qg2 {[%emt 0:00:29]} Nc3 {[%emt 0:00:00]} 40. Kh1 {[%emt 0:00:49]} Ra2 {[%emt 0:00:00]} 41. Qf3 {[%emt 0:00:30]} Qxh3+ {[%emt 0:00:11]} 42. Kg1 {[%emt 0:00:00]} Nxd5 {[%emt 0:00:53]} 43. Nd8 {[%emt 0:00:15]} Qd7 {[%emt 0:00:44]} 44. Rd1 {[%emt 0:00:23]} Qxd8 {[%emt 0:00:28]} 45. Rxd5 {[%emt 0:00:01]} Qb6+ {[%emt 0:00:08]} 46. Kf1 {[%emt 0:01:08]} Ra1+ {[%emt 0:00:16]} 47. Kg2 {[%emt 0:00:06]} Ra2+ {[%emt 0:00:56]} 48. Kf1 {[%emt 0:00:37]} Ra1+ {[%emt 0:00:02]} 49. Kg2 {[%emt 0:00:01]} Qg1+ {[%emt 0:00:22]} 50. Kh3 {[%emt 0:00:00]} Rf1 {[%emt 0:00:19]} 51. Qe4 {[%emt 0:01:32]} Qh1+ {[%emt 0:00:26]} 52. Qxh1 {[%emt 0:00:30]} Rxh1+ {[%emt 0:00:01]} 53. Kg2 {[%emt 0:00:06]} Rb1 {[%emt 0:00:03]} 54. Rd8+ {[%emt 0:00:04]} Kh7 {[%emt 0:00:07]} 55. Ra8 {[%emt 0:00:04]} a4 {[%emt 0:00:07]} 56. Ra7 {[%emt 0:00:17]} f6 {[%emt 0:01:02]} 0-1

[Event "2nd Namma Bengaluru Open-A 2025"]
[Site "Bengaluru"]
[Date "2025.04.15"]
[Round "7.24"]
[White "Sammed Jaykumar, Shete"]
[Black "Anadkat Kartavya"]
[Result "1-0"]
[Annotator "RC"]
[ECO "A46"]
[WhiteElo "2391"]
[BlackElo "2187"]
[PlyCount "59"]
[EventDate "2025.04.10"]
[EventType "swiss"]
[EventCountry "IND"]
[SourceTitle "playchess.com"]
[Source "ChessBase"]
[SourceQuality "1"]
[TimeControl "5400+30"]

1. Nf3 {[%emt 0:00:04]} Nf6 {[%emt 0:04:03]} 2. d4 {[%emt 0:00:06]} e6 {[%emt 0:01:28]} 3. Bg5 {[%emt 0:00:12]} c5 {[%emt 0:00:45]} 4. e3 {[%emt 0:01:41]} Qb6 {[%emt 0:03:22]} 5. Nbd2 {[%emt 0:00:21]} Qxb2 {[%emt 0:05:18]} 6. Bd3 {[%emt 0:00:26]} Nc6 {[%emt 0:08:15]} 7. O-O {[%emt 0:02:21]} Qb6 {[%emt 0:03:49]} 8. c4 {[%emt 0:11:04]} Be7 {[%emt 0:04:24]} 9. a3 {[%emt 0:01:23]} d6 {[%emt 0:05:34]} 10. Qc2 {[%emt 0:13:34]} h6 {[%emt 0:03:55]} 11. Bh4 {[%emt 0:00:06]} O-O {[%emt 0:01:23]} 12. Rfd1 {[%emt 0:03:20]} cxd4 {[%emt 0:08:36]} 13. Rab1 {[%emt 0:00:31]} Qc7 {[%emt 0:02:48]} 14. exd4 {[%emt 0:00:11]} Bd7 {[%emt 0:01:39]} 15. d5 {[%emt 0:03:54]} Ne5 {[%emt 0:05:41]} 16. Nxe5 {[%emt 0:03:53]} dxe5 {[%emt 0:00:02]} 17. Bxf6 {[%emt 0:03:08]} Bxf6 {[%emt 0:02:06]} 18. Ne4 {[%emt 0:00:46]} exd5 {[%emt 0:05:52]} 19. Nxf6+ {[%emt 0:01:13]} gxf6 {[%emt 0:00:02]} 20. Qd2 {[%emt 0:00:19]} Kg7 {[%emt 0:04:02]} 21. cxd5 {[%emt 0:00:57]} Rfc8 {[%emt 0:06:37]} 22. Qb4 {[%emt 0:08:35]} Qc3 {[%emt 0:03:43]} 23. Qh4 {[%emt 0:02:40]} b6 {[%emt 0:01:38]} 24. d6 {[%emt 0:01:35]} f5 {[%emt 0:02:49]} 25. Ba6 {[%emt 0:07:22]} Rc5 {[%emt 0:02:42]} 26. Qe7 {[%emt 0:00:26]} Ba4 {[%emt 0:02:12]} 27. d7 {[%emt 0:02:13]} Bxd1 {[%emt 0:00:43]} 28. Rxd1 {[%emt 0:01:13]} Qxa3 {[%emt 0:07:07]} 29. Bf1 {[%emt 0:00:29]} Ra5 {[%emt 0:02:40]} 30. Rd6 {[%emt 0:00:58]} 1-0

[Event "2nd Namma Bengaluru Open-A 2025"]
[Site "Bengaluru"]
[Date "2025.04.15"]
[Round "7.25"]
[White "Srihari L R"]
[Black "Ashwin Sairam"]
[Result "0-1"]
[Annotator "TA"]
[ECO "B07"]
[WhiteElo "2481"]
[BlackElo "2074"]
[PlyCount "76"]
[EventDate "2025.04.10"]
[EventType "swiss"]
[EventCountry "IND"]
[SourceTitle "playchess.com"]
[Source "ChessBase"]
[SourceQuality "1"]
[TimeControl "5400+30"]

{[%evp 9,76,13,44,43,34,25,36,33,45,38,53,45,47,3,6,13,37,22,11,20,16,31,76,83,81,66,135,0,0,0,0,-64,-42,-127,-117,-117,-114,-115,-125,-114,-122,-127,-108,-160,-166,-176,-18,-485,-448,-669,-624,-708,-706,-789,-804,-1038,-998,-994,-960,-1041,-827,-1068,-939,-847,-580,-834,-770,-1214,-1222]} 1. e4 {[%emt 0:00:02]} d6 {[%emt 0:00:21]} 2. d4 {[%emt 0:00:10]} Nf6 {[%emt 0:00:09]} 3. Nc3 {[%emt 0:00:10]} Nbd7 {[%emt 0:00:08]} 4. f4 {[%emt 0:01:11]} e5 {[%emt 0:00:07]} 5. Be3 {[%emt 0:01:43]} c6 {[%emt 0:04:36]} 6. Qf3 {[%emt 0:03:31] B07: Pirc Defence: Miscellaneous Systems.} b5 {[%emt 0:12:13]} 7. O-O-O {[%emt 0:03:45]} b4 {[%emt 0:13:52]} 8. Nce2 {[%emt 0:00:59] White is slightly better.} Qa5 {[%emt 0:02:53]} 9. Kb1 {[%emt 0:00:19]} Nb6 $146 {[%emt 0:07:38]} (9... Be7 10. Nc1 Qc7 11. g4 h5 12. gxh5 exd4 13. Rxd4 c5 14. Rd1 Bb7 15. Bg2 Bxe4 {0-1 Munoz,C (2017)-Valdes Romero,L (2387) CRI-ch San Jose 2011 (7)}) 10. fxe5 {[%emt 0:06:18]} dxe5 {[%emt 0:03:38]} 11. dxe5 {[%emt 0:02:47]} Be6 $1 $132 {[%emt 0:01:36][%mdl 2048] Black is not keeping still} 12. Nc1 {[%emt 0:28:02]} (12. exf6 Qxa2+ 13. Kc1 Nc4) 12... Qxe5 {[%emt 0:07:55]} 13. Bd4 {[%emt 0:03:50]} Qxe4 {[%emt 0:02:24]} 14. Qf2 {[%emt 0:02:15][%cal Of1d3] White sacrificed a pawn} Rd8 {[%emt 0:10:41]} 15. Be2 {[%emt 0:06:54][%cal Oe2f3] Bf3! would now be deadly.} Ng4 {[%emt 0:05:10]} 16. Bxg4 {[%emt 0:00:57] A sharp opening} Qxg4 {[%emt 0:00:08]} (16... Bxg4 $2 17. Re1 $18) 17. Nf3 {[%emt 0:00:33]} Bd6 {[%emt 0:04:38]} (17... Nd7 $14) 18. Bxb6 {[%emt 0:11:15]} (18. Bc5 $1 $16 {[%cal Rc5d6]} Bxc5 19. Qxc5) 18... axb6 $11 {[%emt 0:00:11]} 19. Qxb6 {[%emt 0:00:02]} O-O {[%emt 0:04:27]} (19... Qxg2 $2 20. Qxc6+ Ke7 21. Rhg1 $18) 20. Ne5 {[%emt 0:01:56]} Qxg2 $15 {[%emt 0:11:37][%cal Oe6a2]} (20... Bxe5 $2 21. Rxd8 f6 22. Rxf8+ Kxf8 23. Qxc6 $18) 21. Rhg1 {[%emt 0:02:17]} (21. Qxc6 $15 Qg5 (21... Bxe5 $2 22. Qxg2 Ra8 23. Rhe1 $18) 22. Rxd6 (22. Nxf7 $2 Bxf7 23. Rxd6 Bd5 $19) 22... Qxe5 23. Rhd1) 21... Qxh2 $17 {[%emt 0:02:05]} 22. Nxc6 {[%emt 0:00:58]} Rd7 {[%emt 0:00:01]} 23. Rh1 {[%emt 0:02:02]} Qf4 {[%emt 0:01:19]} 24. Qb5 {[%emt 0:07:38]} g6 {[%emt 0:03:15]} 25. Rd4 {[%emt 0:01:09]} Qg3 {[%emt 0:01:11]} 26. Rdh4 {[%emt 0:03:13]} (26. Rhd1 $142 Bf5 27. Qa6) 26... h5 {[%emt 0:00:15]} 27. Ne2 {[%emt 0:02:20] [#]} Qg2 {[%emt 0:00:36]} (27... Qe3 $1 $19 {...Bg4 is the strong threat.} 28. Rxh5 gxh5 29. Qxh5 f5) 28. Ned4 $2 {[%emt 0:02:30][%mdl 8192] This costs White the game.} (28. Rxh5 $1 $11 gxh5 29. Qxh5 Bxa2+ (29... Qxc6 30. Qh8#) 30. Kxa2 b3+ (30... Qxc6 31. Qh8#) 31. Kxb3 Rb7+ (31... Qxc6 32. Qh8#) 32. Ka2) 28... Qd5 {[%emt 0:00:26] Black is clearly winning.} 29. Qa4 {[%emt 0:01:06]} (29. Qa6 $142 Bg4 30. Rc1) 29... Bg3 $19 {[%emt 0:00:21] This pair of bishops is nice.} 30. Nxb4 {[%emt 0:00:12]} Qb7 {[%emt 0:00:47]} 31. Nxe6 {[%emt 0:02:54]} Bxh4 {[%emt 0:00:04][%cal Rb7h1]} ({Less strong is} 31... fxe6 32. R4h3 $17) 32. Nc6 {[%emt 0:00:04]} fxe6 {[%emt 0:00:13]} 33. Qe4 {[%emt 0:00:06]} Bf6 {[%emt 0:00:26][%csl Gf6][%cal Rb7b2]} 34. c3 {[%emt 0:00:29]} Rg7 {[%emt 0:00:55]} 35. Qxe6+ {[%emt 0:00:13]} Kh8 {[%emt 0:00:07]} 36. Rf1 {[%emt 0:00:17]} Qd7 {[%emt 0:00:26]} 37. Qe4 {[%emt 0:00:24] Prevents Qd3+.} Re8 {[%emt 0:00:20]} 38. Qc4 {[%emt 0:00:11] [#]} Rc8 $1 {[%emt 0:00:06] Weighted Error Value: White=0.86/Black=0.38  Loses game:     	White=1     	---        Mistake:       	White=5     	Black=2      Inaccurate:     	White=2     	Black=1      OK:         	White=10    	Black=6      Best:        	White=3     	Black=5      Strong:       	---       	Black=1} 0-1

[Event "2nd Namma Bengaluru Open-A 2025"]
[Site "Bengaluru"]
[Date "2025.04.15"]
[Round "7.26"]
[White "Saravana, Krishnan P."]
[Black "Nguyen Van Huy"]
[Result "1-0"]
[Annotator "RC"]
[ECO "B13"]
[WhiteElo "2177"]
[BlackElo "2363"]
[PlyCount "119"]
[EventDate "2025.04.10"]
[EventType "swiss"]
[EventCountry "IND"]
[SourceTitle "playchess.com"]
[Source "ChessBase"]
[SourceQuality "1"]
[TimeControl "5400+30"]

1. e4 {[%emt 0:00:12]} c6 {[%emt 0:00:39]} 2. Nf3 {[%emt 0:00:56]} d5 {[%emt 0:00:33]} 3. exd5 {[%emt 0:00:39]} cxd5 {[%emt 0:00:09]} 4. d4 {[%emt 0:02:14]} Nf6 {[%emt 0:02:27]} 5. Ne5 {[%emt 0:01:32]} g6 {[%emt 0:08:42]} 6. Bb5+ {[%emt 0:01:28]} Nbd7 {[%emt 0:02:26]} 7. O-O {[%emt 0:04:48]} Bg7 {[%emt 0:00:24]} 8. Re1 {[%emt 0:02:19]} O-O {[%emt 0:01:44]} 9. Nf3 {[%emt 0:00:20]} Ne4 {[%emt 0:06:02]} 10. h3 {[%emt 0:07:56]} Qb6 {[%emt 0:09:13]} 11. Bf1 {[%emt 0:04:51]} e5 {[%emt 0:05:30]} 12. c3 {[%emt 0:04:52]} exd4 {[%emt 0:00:50]} 13. cxd4 {[%emt 0:05:15]} Ndf6 {[%emt 0:04:41]} 14. Qb3 {[%emt 0:03:04]} Qxb3 {[%emt 0:07:53]} 15. axb3 {[%emt 0:01:24]} Be6 {[%emt 0:00:19]} 16. Bf4 {[%emt 0:04:18]} Rfc8 {[%emt 0:01:24]} 17. Bd3 {[%emt 0:05:33]} a6 {[%emt 0:01:22]} 18. Na3 {[%emt 0:03:03]} Nh5 {[%emt 0:05:59]} 19. Be5 {[%emt 0:05:58]} f6 {[%emt 0:06:04]} 20. Bh2 {[%emt 0:02:21]} Bf8 {[%emt 0:00:23]} 21. Nc4 {[%emt 0:15:08]} Nxf2 {[%emt 0:08:28]} 22. Bf1 {[%emt 0:01:08]} Ne4 {[%emt 0:07:59]} 23. Nb6 {[%emt 0:00:15]} Bb4 {[%emt 0:00:18]} 24. Red1 {[%emt 0:03:16]} Nhg3 {[%emt 0:00:37]} 25. Bd3 {[%emt 0:01:53]} Bd6 {[%emt 0:02:15]} 26. Nxa8 {[%emt 0:02:19]} Rxa8 {[%emt 0:00:08]} 27. Re1 {[%emt 0:00:21]} Kf7 {[%emt 0:00:52]} 28. Bxe4 {[%emt 0:01:48]} dxe4 {[%emt 0:01:07]} 29. Nd2 {[%emt 0:02:25]} f5 {[%emt 0:05:01]} 30. Nc4 {[%emt 0:00:44]} Bf4 {[%emt 0:02:14]} 31. Kf2 {[%emt 0:04:28]} Nh5 {[%emt 0:00:34]} 32. Ne5+ {[%emt 0:00:46]} Kf6 {[%emt 0:00:47]} 33. g3 {[%emt 0:06:00]} e3+ {[%emt 0:00:50]} 34. Kg1 {[%emt 0:02:08]} Bxg3 {[%emt 0:04:10]} 35. Rxe3 {[%emt 0:00:06]} f4 {[%emt 0:00:30]} 36. Rc3 {[%emt 0:00:22]} Rd8 {[%emt 0:00:31]} 37. Rd1 {[%emt 0:01:30]} Bxh3 {[%emt 0:01:27]} 38. Rc7 {[%emt 0:00:29]} Be6 {[%emt 0:01:29]} 39. Rxb7 {[%emt 0:00:30]} Kf5 {[%emt 0:03:59]} 40. Nc6 {[%emt 0:00:49]} Rd6 {[%emt 0:00:00]} 41. d5 {[%emt 0:00:46]} Bd7 {[%emt 0:00:00]} 42. Rb6 {[%emt 0:00:26]} Ke4 {[%emt 0:00:00]} 43. Rxa6 {[%emt 0:00:46]} Bg4 {[%emt 0:00:00]} 44. Rd4+ {[%emt 0:00:27]} Ke3 {[%emt 0:02:30]} 45. b4 {[%emt 0:00:24]} Bf2+ {[%emt 0:00:00]} 46. Kg2 {[%emt 0:00:06]} Bf3+ {[%emt 0:00:00]} 47. Kh3 {[%emt 0:00:41]} g5 {[%emt 0:00:00]} 48. Ra3+ {[%emt 0:00:05]} Ke2 {[%emt 0:00:00]} 49. Rxf3 {[%emt 0:00:09]} Kxf3 {[%emt 0:00:00]} 50. Ne5+ {[%emt 0:00:11]} Ke2 {[%emt 0:00:00]} 51. Re4+ {[%emt 0:01:14]} Be3 {[%emt 0:00:11]} 52. Nc4 {[%emt 0:00:49]} Rh6 {[%emt 0:01:58]} 53. Kg4 {[%emt 0:00:45]} Nf6+ {[%emt 0:00:43]} 54. Kxg5 {[%emt 0:01:13]} Rg6+ {[%emt 0:00:46]} 55. Kf5 {[%emt 0:00:00]} Nxe4 {[%emt 0:00:13]} 56. Kxe4 {[%emt 0:00:00]} Rg4 {[%emt 0:01:17]} 57. Ne5 {[%emt 0:00:00]} h5 {[%emt 0:00:35]} 58. Nxg4 {[%emt 0:00:00]} hxg4 {[%emt 0:00:23]} 59. Bxf4 {[%emt 0:00:00]} Bb6 {[%emt 0:00:08]} 60. Bg3 {[%emt 0:00:18]} 1-0